fUSD/lending_fUSD_20241227
["ID","MTS","AMOUNT","RATE_DAILY","PERIOD"]
[346781864,1735284646014,-2964.79,0.00012661,2]
[346781866,1735284646023,-1550.34,0.00012661,2]
[346781868,1735284646033,-2066.69,0.00012661,2]
[346781870,1735284646043,-2046.5,0.00012661,2]
[346781872,1735284646052,-1457.7,0.00012661,2]
[346781873,1735284646062,-513.43,0.00012661,2]
[346781874,1735284646072,-1992.88,0.00012661,2]
[346781875,1735284646081,-500.0,0.00012661,2]
[346781876,1735284646091,-15079.41,0.00012661,2]
[346781877,1735284646101,-1067.6,0.00012661,2]
[346781878,1735284646112,-6454.88,0.00012661,2]
[346781879,1735284646121,-892.52,0.00012661,2]
[346781880,1735284646131,-5207.73,0.00012661,2]
[346781881,1735284646141,-1196.03,0.00012661,2]
[346781882,1735284646151,-11543.81,0.00012661,2]
[346781883,1735284646160,-1178.58,0.00012661,2]
[346781884,1735284646170,-6102.70431333,0.00012661,2]
[346781890,1735284646398,-2635.20776727,0.00012661,2]
[346781891,1735284646409,-1444.7679194,0.00012661,2]
[346781892,1735284646419,-3331.8650806,0.00012661,2]
[346781893,1735284646441,-6785.7149194,0.00012661,2]
[346781894,1735284646451,-3346.68,0.00012661,2]
[346781895,1735284646460,-703.81,0.00012661,2]
[346781897,1735284646469,-1728.97,0.00012661,2]
[346781898,1735284646480,-8797.66,0.00012661,2]
[346781899,1735284646489,-500.0,0.00012661,2]
[346781900,1735284646500,-500.0,0.00012661,2]
[346781901,1735284646510,-2475.97,0.00012661,2]
[346781902,1735284646519,-1193.32,0.00012661,2]
[346781903,1735284646528,-1767.7,0.00012661,2]
[346781904,1735284646538,-3917.61,0.00012661,2]
[346781905,1735284646547,-500.0,0.00012661,2]
[346781906,1735284646556,-814.78,0.00012661,2]
[346781907,1735284646566,-1708.04,0.00012661,2]
[346781908,1735284646576,-3518.46,0.00012661,2]
[346781909,1735284646585,-896.1571192,0.00012661,2]
[346781910,1735284646599,-485.7928808,0.00012661,2]
[346781911,1735284646609,-2349.4,0.00012661,2]
[346781912,1735284646618,-1180.42,0.00012661,2]
[346781913,1735284646628,-151.76,0.00012662,2]
[346781914,1735284646639,-154.544155,0.00012662,2]
[346781915,1735284646650,-154.68276,0.00012662,2]
[346781916,1735284646660,-2260.553629,0.00012662,2]
[346781917,1735284646674,-2234.841322,0.00012662,2]
[346781918,1735284646685,-500.0,0.00012662,2]
[346781919,1735284646695,-500.0,0.00012662,2]
[346781920,1735284646705,-500.0,0.00012662,2]
[346781921,1735284646714,-500.0,0.00012662,2]
[346781922,1735284646724,-500.0,0.00012662,2]
[346781923,1735284646733,-2999.27,0.00012662,2]
[346781924,1735284646743,-785.65,0.00012662,2]
[346781925,1735284646753,-500.0,0.00012662,2]
[346781926,1735284646762,-500.0,0.00012662,2]
[346781927,1735284646772,-500.0,0.00012662,2]
[346781928,1735284646782,-500.0,0.00012662,2]
[346781929,1735284646792,-500.0,0.00012662,2]
[346781930,1735284646801,-500.0,0.00012662,2]
[346781931,1735284646812,-500.0,0.00012662,2]
[346781932,1735284646822,-411.24447311,0.00012662,2]
[346781933,1735284646831,-500.0,0.00012662,2]
[346781934,1735284646841,-203.22026869,0.00012662,2]
[346781935,1735284646896,-180.38327004,0.00012661,2]
[346781936,1735284646909,-319.61672996,0.00012661,2]
[346781937,1735284646918,-608.12973131,0.00012662,2]
[346781938,1735284646928,-329.00073451,0.00012662,2]
[346781939,1735284646939,-170.99926549,0.00012662,2]
[346781940,1735284646949,-2825.43,0.00012662,2]
[346781941,1735284646958,-814.16,0.00012662,2]
[346781942,1735284646967,-500.0,0.00012662,2]
[346781943,1735284646977,-967.73,0.00012662,2]
[346781944,1735284646986,-500.0,0.00012662,2]
[346781945,1735284646996,-674.12,0.00012662,2]
[346781946,1735284647005,-500.0,0.00012662,2]
[346781947,1735284647014,-500.0,0.00012662,2]
[346781948,1735284647023,-500.0,0.00012662,2]
[346781949,1735284647033,-500.0,0.00012662,2]
[346781950,1735284647043,-500.0,0.00012662,2]
[346781951,1735284647052,-500.0,0.00012662,2]
[346781952,1735284647062,-500.0,0.00012662,2]
[346781953,1735284647071,-659.68,0.00012662,2]
[346781954,1735284647082,-500.0,0.00012662,2]
[346781955,1735284647091,-611.77,0.00012662,2]
[346781956,1735284647100,-725.6,0.00012662,2]
[346781957,1735284647111,-1637.47,0.00012662,2]
[346781958,1735284647120,-500.0,0.00012662,2]
[346781959,1735284647130,-202.32395614,0.00012662,2]
[346781960,1735284647140,-500.0,0.00012662,2]
[346781961,1735284647150,-500.0,0.00012662,2]
[346781962,1735284647159,-500.0,0.00012662,2]
[346781963,1735284647168,-500.0,0.00012662,2]
[346781964,1735284647177,-500.0,0.00012662,2]
[346781965,1735284647186,-500.0,0.00012662,2]
[346781966,1735284647196,-500.0,0.00012662,2]
[346781967,1735284647205,-500.0,0.00012662,2]
[346781968,1735284647214,-4533.11,0.00012662,2]
[346781969,1735284647223,-500.0,0.00012662,2]
[346781970,1735284647232,-500.0,0.00012662,2]
[346781971,1735284647242,-500.0,0.00012662,2]
[346781972,1735284647252,-502.6871143,0.00012662,2]
[346781973,1735284647261,-500.0,0.00012662,2]
[346781974,1735284647271,-585.07,0.00012662,2]
[346781975,1735284647280,-945.98,0.00012662,2]
[346781976,1735284647289,-500.0,0.00012662,2]
[346781977,1735284647299,-500.0,0.00012662,2]
[346781978,1735284647308,-500.0,0.00012662,2]
[346781979,1735284647318,-757.52,0.00012662,2]
[346781980,1735284647327,-500.0,0.00012662,2]
[346781981,1735284647337,-500.0,0.00012662,2]
[346781982,1735284647347,-500.0,0.00012662,2]
[346781983,1735284647357,-500.0,0.00012662,2]
[346781984,1735284647367,-500.0,0.00012662,2]
[346781985,1735284647377,-500.0,0.00012662,2]
[346781986,1735284647386,-500.0,0.00012662,2]
[346781987,1735284647396,-500.0,0.00012662,2]
[346781988,1735284647406,-500.0,0.00012662,2]
[346781989,1735284647416,-500.0,0.00012662,2]
[346781990,1735284647425,-500.0,0.00012662,2]
[346781991,1735284647436,-500.0,0.00012662,2]
[346781992,1735284647446,-500.0,0.00012662,2]
[346781993,1735284647457,-1068.02,0.00012662,2]
[346781994,1735284647467,-3138.48799794,0.00012662,2]
[346781998,1735285509185,200.19,0.0002,120]
[346782112,1735285833045,-618.83,9.638e-05,2]
[346782113,1735285833056,-167.61,0.00010137,2]
[346782114,1735285833067,-22.66534744,0.00011166,2]
[346782115,1735285833080,-277.33465256,0.00011166,2]
[346782116,1735285833091,-42.95576008,0.00011166,2]
[346782117,1735285833103,-107.75423992,0.00011166,2]
[346782118,1735285833112,-151.4,0.00011166,2]
[346782119,1735285833122,-150.25,0.00011166,2]
[346782120,1735285833132,-150.12,0.00011166,2]
[346782121,1735285833143,-151.01,0.00011166,2]
[346782122,1735285833154,-150.17,0.00011167,2]
[346782123,1735285833163,-150.9,0.00011167,2]
[346782124,1735285833175,-151.1,0.00011167,2]
[346782125,1735285833185,-151.76,0.00011167,2]
[346782126,1735285833199,-151.7,0.00011167,2]
[346782127,1735285833209,-151.81,0.00011167,2]
[346782128,1735285833219,-150.97,0.00011167,2]
[346782129,1735285833230,-150.24,0.00011266,2]
[346782130,1735285833241,-151.19,0.00011266,2]
[346782131,1735285833251,-151.82,0.00011266,2]
[346782132,1735285833262,-151.87,0.00011266,2]
[346782133,1735285833272,-151.17,0.00011267,2]
[346782134,1735285833282,-152.56,0.00011267,2]
[346782135,1735285833293,-151.11,0.00011267,2]
[346782136,1735285833303,-152.04,0.00011267,2]
[346782137,1735285833313,-152.28,0.00011267,2]
[346782138,1735285833323,-152.49,0.00011267,2]
[346782139,1735285833334,-152.54,0.00011267,2]
[346782140,1735285833344,-151.54,0.00011267,2]
[346782141,1735285833354,-151.78,0.00011267,2]
[346782142,1735285833365,-250.0,0.00011296,2]
[346782143,1735285833378,-359.22,0.00011304,2]
[346782144,1735285833389,-50.22780815,0.00011367,2]
[346782145,1735285833416,-100.07219185,0.00011367,2]
[346782146,1735285833432,-150.83,0.00011367,2]
[346782147,1735285833443,-151.47,0.00011367,2]
[346782148,1735285833453,-150.73,0.00011367,2]
[346782149,1735285833463,-150.89,0.00011367,2]
[346782150,1735285833473,-150.47,0.00011367,2]
[346782151,1735285833484,-250.0,0.0001145,2]
[346782152,1735285833494,-988.8244318,0.00011522,2]
[346782153,1735285833507,-11.1755682,0.00011522,2]
[346782154,1735285833517,-300.16568323,0.00011535,2]
[346782155,1735285833529,-226.79431677,0.00011535,2]
[346782156,1735285833538,-250.0,0.00011641,2]
[346782157,1735285833548,-618.83,0.00011902,2]
[346782158,1735285833558,-2000.0,0.00012,2]
[346782159,1735285833567,-420.0,0.00012268,2]
[346782160,1735285833577,-398.747,0.0001235,2]
[346782161,1735285833587,-150.0,0.00012356,2]
[346782162,1735285833597,-17037.39588485,0.00012463,2]
[346782163,1735285833609,-4695.67875896,0.00012463,2]
[346782164,1735285833620,-1152.64524711,0.00012463,2]
[346782165,1735285833632,-381.348,0.00012463,2]
[346782166,1735285833644,-971.73618872,0.00012463,2]
[346782167,1735285833662,-953.96554725,0.00012463,2]
[346782168,1735285833754,-22160.91469216,0.00012463,2]
[346782169,1735285833764,-150.92,0.00012539,2]
[346782170,1735285833774,-152.64,0.00012539,2]
[346782172,1735285833783,-152.02,0.00012539,2]
[346782174,1735285833792,-2012.0,0.00012539,2]
[346782176,1735285833801,-1266.0,0.00012539,2]
[346782178,1735285833810,-150.0,0.00012539,2]
[346782180,1735285833819,-565.0,0.00012539,2]
[346782182,1735285833829,-499.193,0.00012539,2]
[346782184,1735285833839,-303.129,0.00012539,2]
[346782186,1735285833848,-3889.0,0.00012539,2]
[346782188,1735285833857,-150.0,0.00012539,2]
[346782190,1735285833866,-3422.3262046,0.00012559,2]
[346782191,1735285833875,-30328.6306956,0.00012561,2]
[346782193,1735285833887,-476.47115363,0.00012561,2]
[346782195,1735285833898,-1409.25229469,0.00012561,2]
[346782205,1735285837977,-262.47630768,0.00012559,2]
[346782206,1735285837989,-3832.10182229,0.00012559,2]
[346782207,1735285838257,-905.42187003,0.00012559,2]
[346782208,1735285838267,-134.1671309,0.00012561,2]
[346782209,1735285838278,-4764.5,0.00012561,2]
[346782210,1735285838290,-5818.30762518,0.00012561,2]
[346782211,1735285838300,-3422.32620459,0.00012597,2]
[346782212,1735285838310,-349.54650599,0.000126,2]
[346782213,1735285838322,-654.45349401,0.000126,2]
[346782214,1735285838331,-314.44732309,0.00012635,2]
[346782215,1735285838343,-3107.8788815,0.00012635,2]
[346782216,1735285838352,-151.66,0.00012657,2]
[346782217,1735285838362,-150.122716,0.00012658,3]
[346782218,1735285838372,-150.122716,0.00012658,3]
[346782219,1735285838381,-150.122716,0.00012658,3]
[346782220,1735285838391,-150.122716,0.00012658,4]
[346782221,1735285838401,-150.122716,0.00012658,4]
[346782222,1735285838411,-150.122716,0.00012658,4]
[346782223,1735285838420,-150.122716,0.00012658,4]
[346782224,1735285838431,-171.122716,0.00012658,3]
[346782225,1735285838441,-171.122716,0.00012658,3]
[346782226,1735285838450,-171.122716,0.00012658,3]
[346782227,1735285838459,-171.122716,0.00012658,3]
[346782228,1735285838469,-171.122716,0.00012658,4]
[346782229,1735285838478,-427.84853565,0.00012658,2]
[346782230,1735285838487,-500.0,0.00012658,2]
[346782231,1735285838497,-608.44,0.00012658,2]
[346782233,1735285838507,-500.0,0.00012658,2]
[346782235,1735285838516,-660.08,0.00012658,2]
[346782236,1735285838526,-709.92,0.00012658,2]
[346782237,1735285838535,-1012.56,0.00012658,2]
[346782238,1735285838545,-352.74398157,0.00012658,2]
[346782239,1735285838554,-500.0,0.00012658,2]
[346782240,1735285838563,-500.0,0.00012658,2]
[346782241,1735285838573,-500.0,0.00012658,2]
[346782242,1735285838584,-500.0,0.00012658,2]
[346782243,1735285838594,-688.83,0.00012658,2]
[346782244,1735285838603,-500.0,0.00012658,2]
[346782245,1735285838613,-777.86,0.00012658,2]
[346782246,1735285838622,-500.0,0.00012658,2]
[346782247,1735285838631,-500.0,0.00012658,2]
[346782248,1735285838641,-500.0,0.00012658,2]
[346782249,1735285838650,-500.0,0.00012658,2]
[346782250,1735285838659,-500.0,0.00012658,2]
[346782251,1735285838669,-500.0,0.00012658,2]
[346782252,1735285838681,-500.0,0.00012658,2]
[346782253,1735285838690,-667.64,0.00012658,2]
[346782254,1735285838699,-500.0,0.00012658,2]
[346782255,1735285838709,-811.04,0.00012658,2]
[346782256,1735285838718,-801.16,0.00012658,2]
[346782257,1735285838727,-500.0,0.00012658,2]
[346782258,1735285838743,-665.77,0.00012658,2]
[346782259,1735285838752,-519.32866292,0.00012658,2]
[346782260,1735285838762,-500.0,0.00012658,2]
[346782261,1735285838771,-500.0,0.00012658,2]
[346782262,1735285838782,-500.0,0.00012658,2]
[346782263,1735285838792,-500.0,0.00012658,2]
[346782264,1735285838801,-957.61,0.00012658,2]
[346782265,1735285838811,-500.0,0.00012658,2]
[346782266,1735285838821,-500.0,0.00012658,2]
[346782267,1735285838831,-500.0,0.00012658,2]
[346782268,1735285838840,-500.0,0.00012658,2]
[346782269,1735285838849,-263.62633288,0.00012658,2]
[346782270,1735285838859,-500.0,0.00012658,2]
[346782271,1735285838868,-507.2514103,0.00012658,2]
[346782272,1735285838878,-505.4,0.00012658,2]
[346782273,1735285838888,-607.11,0.00012658,2]
[346782274,1735285838897,-500.0,0.00012658,2]
[346782275,1735285838907,-500.0,0.00012658,2]
[346782276,1735285838917,-500.0,0.00012658,2]
[346782277,1735285838927,-1095.87,0.00012658,2]
[346782278,1735285838937,-500.0,0.00012658,2]
[346782279,1735285838946,-536.37645136,0.00012658,2]
[346782280,1735285838955,-519.23,0.00012658,2]
[346782281,1735285838965,-500.0,0.00012658,2]
[346782282,1735285838974,-500.0,0.00012658,2]
[346782283,1735285838983,-500.0,0.00012658,2]
[346782284,1735285838993,-500.0,0.00012658,2]
[346782285,1735285839003,-500.0,0.00012658,2]
[346782286,1735285839011,-500.0,0.00012658,2]
[346782287,1735285839020,-500.0,0.00012658,2]
[346782288,1735285839030,-500.0,0.00012658,2]
[346782289,1735285839040,-500.0,0.00012658,2]
[346782290,1735285839049,-500.0,0.00012658,2]
[346782291,1735285839059,-500.0,0.00012658,2]
[346782292,1735285839068,-500.0,0.00012658,2]
[346782293,1735285839077,-500.0,0.00012658,2]
[346782294,1735285839087,-500.0,0.00012658,2]
[346782295,1735285839096,-500.0,0.00012658,2]
[346782296,1735285839106,-500.0,0.00012658,2]
[346782298,1735285839116,-500.0,0.00012658,2]
[346782300,1735285839125,-500.0,0.00012658,2]
[346782302,1735285839135,-500.0,0.00012658,2]
[346782305,1735285839145,-500.0,0.00012658,2]
[346782307,1735285839155,-500.0,0.00012658,2]
[346782312,1735285839165,-1066.24,0.00012658,2]
[346782316,1735285839177,-581.55,0.00012658,2]
[346782319,1735285839187,-500.0,0.00012658,2]
[346782322,1735285839196,-500.0,0.00012658,2]
[346782324,1735285839206,-500.0,0.00012658,2]
[346782327,1735285839215,-1053.71,0.00012658,2]
[346782330,1735285839225,-7079.75,0.00012658,2]
[346782333,1735285839235,-500.0,0.00012658,2]
[346782335,1735285839244,-500.0,0.00012658,2]
[346782338,1735285839253,-500.0,0.00012658,2]
[346782340,1735285839262,-500.0,0.00012658,2]
[346782343,1735285839273,-1054.9,0.00012658,2]
[346782347,1735285839282,-500.0,0.00012658,2]
[346782349,1735285839291,-4296.91892908,0.00012658,2]
[346782354,1735285839310,-10875.13107092,0.00012658,2]
[346782356,1735285839320,-500.0,0.00012658,2]
[346782359,1735285839329,-506.16872799,0.00012658,2]
[346782361,1735285839339,-500.0,0.00012658,2]
[346782362,1735285839348,-504.97754781,0.00012658,2]
[346782365,1735285839357,-502.09452735,0.00012658,2]
[346782368,1735285839367,-500.0,0.00012658,2]
[346782371,1735285839376,-500.0,0.00012658,2]
[346782373,1735285839384,-500.0,0.00012658,2]
[346782376,1735285839394,-500.0,0.00012658,2]
[346782378,1735285839403,-500.0,0.00012658,2]
[346782380,1735285839412,-5100.83,0.00012658,2]
[346782381,1735285839423,-500.0,0.00012658,2]
[346782384,1735285839433,-500.0,0.00012658,2]
[346782386,1735285839443,-11331.11,0.00012658,2]
[346782388,1735285839453,-227.38733641,0.00012658,2]
[346782389,1735285839464,-272.61266359,0.00012658,2]
[346782390,1735285839474,-500.0,0.00012658,2]
[346782391,1735285839483,-3283.51,0.00012658,2]
[346782392,1735285839493,-500.0,0.00012658,2]
[346782393,1735285839502,-517.56,0.00012658,2]
[346782394,1735285839511,-500.0,0.00012658,2]
[346782395,1735285839521,-8653.36,0.00012658,2]
[346782396,1735285839530,-484.93695107,0.00012658,2]
[346782397,1735285839539,-504.18823325,0.00012658,2]
[346782398,1735285839550,-263.94802246,0.00012658,2]
[346782399,1735285839559,-500.0,0.00012658,2]
[346782400,1735285839569,-500.0,0.00012658,2]
[346782401,1735285839578,-500.0,0.00012658,2]
[346782402,1735285839587,-500.0,0.00012658,2]
[346782404,1735285839597,-524.26,0.00012658,2]
[346782406,1735285839606,-500.0,0.00012658,2]
[346782408,1735285839615,-500.0,0.00012658,2]
[346782410,1735285839625,-521.81,0.00012658,2]
[346782412,1735285839634,-500.0,0.00012658,2]
[346782414,1735285839643,-500.0,0.00012658,2]
[346782416,1735285839653,-500.0,0.00012658,2]
[346782418,1735285839662,-500.0,0.00012658,2]
[346782420,1735285839671,-500.0,0.00012658,2]
[346782422,1735285839682,-500.0,0.00012658,2]
[346782425,1735285839691,-831.82,0.00012658,2]
[346782426,1735285839700,-814.78,0.00012658,2]
[346782428,1735285839709,-558.16456915,0.00012658,2]
[346782431,1735285839719,-641.724129,0.00012658,2]
[346782433,1735285839728,-500.0,0.00012658,2]
[346782434,1735285839741,-500.0,0.00012658,2]
[346782436,1735285839750,-500.0,0.00012658,2]
[346782438,1735285839759,-500.0,0.00012658,2]
[346782440,1735285839769,-566.34065175,0.00012658,2]
[346782442,1735285839778,-816.41,0.00012658,2]
[346782444,1735285839787,-500.0,0.00012658,2]
[346782446,1735285839797,-500.0,0.00012658,2]
[346782448,1735285839806,-719.58,0.00012658,2]
[346782450,1735285839816,-2339.17,0.00012658,2]
[346782452,1735285839826,-500.0,0.00012658,2]
[346782454,1735285839835,-500.0,0.00012658,2]
[346782456,1735285839845,-500.0,0.00012658,2]
[346782458,1735285839854,-500.0,0.00012658,2]
[346782460,1735285839863,-1812.41415429,0.00012659,2]
[346782462,1735285839873,-193860.52972421,0.00012659,2]
[346782464,1735285839883,-1662.92,0.00012659,2]
[346782466,1735285839892,-585.1,0.00012659,2]
[346782468,1735285839901,-500.0,0.00012659,2]
[346782470,1735285839911,-1435.78,0.00012659,2]
[346782472,1735285839920,-930.33,0.00012659,2]
[346782475,1735285839932,-514.57,0.00012659,2]
[346782478,1735285839942,-500.0,0.00012659,2]
[346782481,1735285839951,-1152.47,0.00012659,2]
[346782483,1735285839960,-500.0,0.00012659,2]
[346782485,1735285839970,-2322.91,0.00012659,2]
[346782487,1735285839979,-543.3,0.00012659,2]
[346782489,1735285839989,-500.0,0.00012659,2]
[346782491,1735285839998,-1680.51,0.00012659,2]
[346782493,1735285840008,-1588.4,0.00012659,2]
[346782496,1735285840018,-1643.73,0.00012659,2]
[346782498,1735285840027,-1095.32,0.00012659,2]
[346782500,1735285840038,-822.99,0.00012659,2]
[346782502,1735285840047,-500.0,0.00012659,2]
[346782505,1735285840057,-753.23,0.00012659,2]
[346782507,1735285840067,-500.0,0.00012659,2]
[346782508,1735285840076,-941.45,0.00012659,2]
[346782510,1735285840086,-500.0,0.00012659,2]
[346782512,1735285840096,-500.0,0.00012659,2]
[346782514,1735285840105,-1570.4,0.00012659,2]
[346782516,1735285840114,-500.0,0.00012659,2]
[346782518,1735285840124,-1314.44,0.00012659,2]
[346782521,1735285840133,-811.3,0.00012659,2]
[346782523,1735285840143,-681.41,0.00012659,2]
[346782525,1735285840152,-500.0,0.00012659,2]
[346782527,1735285840161,-1122.1,0.00012659,2]
[346782529,1735285840171,-2940.08,0.00012659,2]
[346782531,1735285840182,-1975.15,0.00012659,2]
[346782533,1735285840191,-1721.74,0.00012659,2]
[346782535,1735285840201,-500.0,0.00012659,2]
[346782537,1735285840211,-1906.66,0.00012659,2]
[346782539,1735285840221,-527.13,0.00012659,2]
[346782541,1735285840231,-500.0,0.00012659,2]
[346782543,1735285840240,-2770.35,0.00012659,2]
[346782545,1735285840250,-832.29,0.00012659,2]
[346782547,1735285840259,-500.0,0.00012659,2]
[346782549,1735285840269,-761.91,0.00012659,2]
[346782551,1735285840278,-500.0,0.00012659,2]
[346782553,1735285840288,-500.0,0.00012659,2]
[346782555,1735285840297,-594.26,0.00012659,2]
[346782557,1735285840307,-2157.89,0.00012659,2]
[346782559,1735285840316,-500.0,0.00012659,2]
[346782560,1735285840325,-500.0,0.00012659,2]
[346782561,1735285840336,-500.0,0.00012659,2]
[346782562,1735285840345,-500.0,0.00012659,2]
[346782563,1735285840355,-1169.45,0.00012659,2]
[346782564,1735285840365,-4408.46,0.00012659,2]
[346782565,1735285840375,-917.49,0.00012659,2]
[346782566,1735285840385,-2473.42,0.00012659,2]
[346782567,1735285840395,-896.17,0.00012659,2]
[346782568,1735285840404,-1371.85,0.00012659,2]
[346782569,1735285840414,-989.24,0.00012659,2]
[346782570,1735285840424,-1376.81,0.00012659,2]
[346782571,1735285840434,-500.0,0.00012659,2]
[346782572,1735285840443,-500.0,0.00012659,2]
[346782573,1735285840453,-2276.09,0.00012659,2]
[346782574,1735285840462,-2146.93,0.00012659,2]
[346782575,1735285840472,-803.95,0.00012659,2]
[346782576,1735285840481,-895.37,0.00012659,2]
[346782577,1735285840491,-643.18,0.00012659,2]
[346782578,1735285840500,-327.91334225,0.00012659,2]
[346782593,1735285840630,-1812.67,0.00012658,2]
[346782596,1735285840640,-2236.35665775,0.00012659,2]
[346782599,1735285840649,-500.0,0.00012659,2]
[346782602,1735285840659,-2499.73354626,0.00012659,2]
[346782604,1735285840670,-600.66619143,0.00012659,2]
[346782606,1735285840683,-4009.04026231,0.00012659,2]
[346782608,1735285840693,-1174.76,0.00012659,2]
[346782610,1735285840703,-1641.47,0.00012659,2]
[346782612,1735285840712,-500.0,0.00012659,2]
[346782614,1735285840722,-500.0,0.00012659,2]
[346782616,1735285840732,-500.0,0.00012659,2]
[346782618,1735285840744,-4421.61,0.00012659,2]
[346782620,1735285840754,-674.35,0.00012659,2]
[346782622,1735285840763,-1191.12,0.00012659,2]
[346782624,1735285840772,-982.42,0.00012659,2]
[346782626,1735285840782,-1069.44,0.00012659,2]
[346782628,1735285840792,-500.0,0.00012659,2]
[346782630,1735285840801,-500.0,0.00012659,2]
[346782632,1735285840811,-831.12460343,0.00012659,2]
[346782634,1735285840823,-815.27374442,0.00012659,2]
[346782637,1735285840834,-268.28055403,0.00012659,2]
[346782639,1735285840845,-680.32109812,0.00012659,2]
[346782641,1735285840855,-1097.74,0.00012659,2]
[346782643,1735285840865,-4188.26,0.00012659,2]
[346782645,1735285840875,-990.86,0.00012659,2]
[346782647,1735285840884,-164.00529898,0.00012659,2]
[346782679,1735285841194,-481.96558517,0.00012658,2]
[346782682,1735285841207,-146.37441483,0.00012658,2]
[346782684,1735285841217,-334.56611269,0.00012659,2]
[346782686,1735285841227,-500.0,0.00012659,2]
[346782688,1735285841236,-916.05947248,0.00012659,2]
[346782690,1735285841247,-3620.94052752,0.00012659,2]
[346782692,1735285841257,-1549.5,0.00012659,2]
[346782694,1735285841266,-3297.86,0.00012659,2]
[346782696,1735285841276,-787.14,0.00012659,2]
[346782698,1735285841286,-924.42,0.00012659,2]
[346782700,1735285841296,-1126.17,0.00012659,2]
[346782702,1735285841305,-829.79,0.00012659,2]
[346782704,1735285841315,-500.0,0.00012659,2]
[346782706,1735285841324,-2376.52,0.00012659,2]
[346782708,1735285841333,-6373.23,0.00012659,2]
[346782710,1735285841342,-855.85,0.00012659,2]
[346782712,1735285841352,-7832.32,0.00012659,2]
[346782714,1735285841361,-2027.67,0.00012659,2]
[346782716,1735285841371,-3015.75,0.00012659,2]
[346782718,1735285841380,-500.0,0.00012659,2]
[346782719,1735285841390,-1329.17,0.00012659,2]
[346782722,1735285841400,-6377.45,0.00012659,2]
[346782724,1735285841411,-1414.05,0.00012659,2]
[346782726,1735285841423,-500.0,0.00012659,2]
[346782727,1735285841434,-4527.97,0.00012659,2]
[346782730,1735285841444,-2060.95,0.00012659,2]
[346782732,1735285841453,-2250.19,0.00012659,2]
[346782734,1735285841463,-1860.82,0.00012659,2]
[346782735,1735285841473,-500.0,0.00012659,2]
[346782738,1735285841483,-3365.46,0.00012659,2]
[346782739,1735285841492,-154.508751,0.00012659,2]
[346782741,1735285841501,-156.066985,0.00012659,2]
[346782743,1735285841510,-1558.45,0.00012659,2]
[346782745,1735285841520,-2278.410882,0.00012659,2]
[346782748,1735285841529,-2253.406455,0.00012659,2]
[346782750,1735285841539,-1119.39,0.00012659,2]
[346782751,1735285841548,-2174.37,0.00012659,2]
[346782753,1735285841558,-1909.84,0.00012659,2]
[346782755,1735285841567,-500.0,0.00012659,2]
[346782757,1735285841576,-1146.19,0.00012659,2]
[346782759,1735285841585,-6414.09,0.00012659,2]
[346782761,1735285841594,-897.02,0.00012659,2]
[346782763,1735285841603,-500.0,0.00012659,2]
[346782765,1735285841612,-750.41,0.00012659,2]
[346782780,1735285841807,-506.64957533,0.00012659,2]
[346782783,1735285841852,-9758.4,0.00012659,2]